Cogmind - Beta 12 X4 @@@ ROGUE MODE // 2023.01.10 @ 22:10:57 Player: Lunatic Blue Result: Destroyed by GM-LGS(z) with Makeshift Sword Performance ------------- Evolutions (1) 500 Regions Visited (5) 1000 Robots Destroyed (25) 125 Value Destroyed (625) 625 Prototype IDs (0) 0 Alien Tech Used (0) 0 Bonus (267) 267 TOTAL SCORE: 2517 Bonus ------- Met Imprinter 300 Friendly Fire -33 Cogmind --------- Core Integrity 0/400 Matter 82/300 Energy 99/100 System Corruption 0% Temperature Cool (0) Movement Core (50) Location -7/Zion Parts ------- > --- POWER (1) -------- (None) > --- PROPULSION (3) --- (None) > --- UTILITY (3) ------ (None) > --- WEAPON (2) ------- (None) > --- INVENTORY (5) ---- Improved Targeting Computer Tactical Coordination Suite Hacking Drone Bay Heavy Beamcaster Assault Rifle Peak State ------------ > --- POWER ------------ Makeshift Power Source > --- PROPULSION ------- Light Treads Light Treads Armored Treads > --- UTILITY ---------- Large Storage Unit Structural Scanner Shield Generator > --- WEAPON ----------- Heavy Assault Rifle CR-A16's Pointy Stick > --- INVENTORY -------- Ion Engine Light Treads Heat Sink Sensor Array Signal Interpreter Improved Targeting Computer Tactical Coordination Suite Light Armor Plating Medium Armor Plating Hacking Drone Bay Heavy Beamcaster Heavy Beamcaster Assault Rifle Heavy Assault Rifle Rocket Launcher [Rating: 23] Favorites ----------- Power Ion Engine Engine Ion Engine Propulsion Light Treads Treads Light Treads Leg Aluminum Leg Wheel Compact Wheel Utility Large Storage Unit Device Structural Scanner Storage Large Storage Unit Weapon Assault Rifle Energy Gun Small Laser Ballistic Gun Assault Rifle Launcher Rocket Launcher Impact Weapon Hammer Piercing Weapon CR-A16's Pointy Stick Build | -11 -10 -10 -9 -9 -7 ------- Run | Scr Mat Min Mat Min Zio Slots Evolved 2 | . . . 2 . . Power . | . . . . . . Propulsion 1 | . . . 1 . . Utility 1 | . . . 1 . . Weapon . | . . . . . . Parts Attached 29 | . 8 1 10 . 10 Power 2 | . 1 . . . 1 Engine 2 | . 1 . . . 1 Core . | . . . . . . Reactor . | . . . . . . Propulsion 6 | . 3 . 2 . 1 Treads 4 | . 1 . 2 . 1 Leg . | . . . . . . Wheel 2 | . 2 . . . . Hover . | . . . . . . Flight . | . . . . . . Utility 5 | . 2 . 3 . . Device 4 | . 1 . 3 . . Storage 1 | . 1 . . . . Processor . | . . . . . . Hackware . | . . . . . . Protection . | . . . . . . Artifact . | . . . . . . Weapon 16 | . 2 1 5 . 8 Energy Gun . | . . . . . . Energy Cannon . | . . . . . . Ballistic Gun 10 | . 2 . 4 . 4 Ballistic Cannon . | . . . . . . Launcher 1 | . . . . . 1 Special Weapon . | . . . . . . Impact Weapon 2 | . . 1 1 . . Slashing Weapon . | . . . . . . Piercing Weapon 3 | . . . . . 3 Special Melee Weapon . | . . . . . . Unidentified Prototypes . | . . . . . . Parts Lost 12 | . 4 . 2 . 6 Power 2 | . 1 . . . 1 Propulsion 5 | . 1 . 1 . 3 Utility 1 | . 1 . . . . Weapon 4 | . 1 . 1 . 2 Highest Loss Streak 4 | . 4 . 1 . 4 To Critical Strikes 1 | . 1 . . . . Average Slot Usage (%) 93 | . 95 85 94 100 92 Engine 11 | . 13 14 11 11 10 Treads 22 | . 12 14 22 22 27 Wheel 6 | . 12 14 11 11 1 Device 16 | . 9 . 17 22 21 Storage 11 | . 14 14 11 11 10 Ballistic Gun 19 | . 27 18 21 22 15 Piercing Weapon 2 | . . . . . 3 Naked Turns 41 | . . . . . 41 Heaviest Build 34 | 13 30 29 33 33 34 Greatest Support 60 | 20 20 16 16 16 60 Greatest Overweight (x) 8 | . 2 1 2 2 8 Average Overweight (x) . | . 1 1 1 2 . Largest Inventory Capacity 15 | . 15 15 15 15 15 Average Capacity 14 | . 14 15 15 15 14 Most Carried 15 | . 13 12 15 15 15 Average Carried 13 | . 9 12 14 15 14 Final Capacity 15 | 8 15 15 15 15 5 Final Carried 15 | 6 12 12 15 15 5 Class Distribution -------------------- 100% | Mutant Dominant Class ---------------- Mutant | -10/Materials Mutant | -10/Mines Mutant | -9/Materials Mutant | -9/Mines Mutant | -7/Zion Resources | -11 -10 -10 -9 -9 -7 ----------- Run | Scr Mat Min Mat Min Zio Matter Collected 852 | 170 326 . 298 . 58 Remotely . | . . . . . . Salvage Created 850 | . 411 . 439 . . Parts 48 | . 29 . 19 . . Haulers Intercepted 2 | . 2 . . . . Recyclers Shooed 1 | . 1 . . . . Parts Field Recycled . | . . . . . . Retrieved Matter . | . . . . . . Parts Self-Destructed 3 | . . . . . 3 Prevented . | . . . . . . Kills | -11 -10 -10 -9 -9 -7 ------- Run | Scr Mat Min Mat Min Zio Combat Hostiles Destroyed 21 | . 12 . 9 . . Guns 21 | . 12 . 9 . . Classes Destroyed 5 | . 4 . 1 . . Hauler 2 | . 2 . . . . Watcher 2 | . 2 . . . . Swarmer 8 | . 8 . . . . Grunt 9 | . 4 . 5 . . Sentry 4 | . . . 4 . . Best Kill Streak 3 | . 3 . 3 . . Combat Bots Only 3 | . 3 . 3 . . Max Kills in Single Turn 2 | . 2 . 1 . . Gunslinging 1 | . 1 . . . . Exploded . | . . . . . . Melee . | . . . . . . Uniques/NPCs Destroyed . | . . . . . . Combat | -11 -10 -10 -9 -9 -7 -------- Run | Scr Mat Min Mat Min Zio Damage Taken 1970 | . 463 . 422 . 1085 Core 444 | . 39 . 66 . 339 Absorbed by Shields 321 | . . . 118 . 203 Regen/Repaired (Parts) 30 | . . . . . 30 Core Remaining (%) 92 | 100 . 84 . . . Volleys Fired 89 | . 48 . 28 . 13 Largest 2 | . 2 . 2 . 2 Hottest 56 | . 40 . 43 . 56 Shots Fired 176 | . 96 . 56 . 24 Gun 163 | . 96 . 56 . 11 Cannon . | . . . . . . Launcher 13 | . . . . . 13 Special . | . . . . . . Kinetic 163 | . 96 . 56 . 11 Thermal . | . . . . . . Explosive 13 | . . . . . 13 Electromagnetic . | . . . . . . Robot Hit Streak 13 | . 5 . 13 . . Robot Miss Streak 6 | . 6 . 2 . . Penetration Max . | . . . . . . Secondary Targets 3 | . 3 . . . . Max Gunslinging Chain 1 | . 1 . . . . Shots Hit Robots 99 | . 54 1 44 . . Core Hits 39 | . 22 . 17 . . Critical Kills 1 | . . . 1 . . Critical Parts Destroyed 2 | . 1 . 1 . . Critical Strikes 3 | . 1 . 2 . . Destroy 3 | . 1 . 2 . . Melee Attacks 47 | . . 8 1 . 38 Impact 9 | . . 8 1 . . Slashing . | . . . . . . Piercing 38 | . . . . . 38 Sneak Attacks 1 | . . 1 . . . Combat Hostiles . | . . . . . . Follow-up Attacks . | . . . . . . Damage Inflicted 1400 | . 693 52 599 . 56 Guns 1280 | . 681 . 599 . . Cannons . | . . . . . . Explosions 56 | . . . . . 56 Melee 52 | . . 52 . . . Ramming 12 | . 12 . . . . Kinetic 1280 | . 681 . 599 . . Thermal . | . . . . . . Explosive 56 | . . . . . 56 Electromagnetic . | . . . . . . Impact 52 | . . 52 . . . Slashing . | . . . . . . Piercing . | . . . . . . Highest Corruption . | . . . . . . Average Corruption . | . . . . . . Corruption Purged . | . . . . . . Corruption Blocked . | . . . . . . Overload Shots . | . . . . . . Overflow Damage 56 | . . 32 . . 24 Projectiles . | . . . . . . Explosions 24 | . . . . . 24 Melee 32 | . . 32 . . . Knockbacks 1 | . . 1 . . . Impact 1 | . . 1 . . . Kinetic . | . . . . . . Secondary . | . . . . . . Self-Inflicted Damage 450 | . 6 . . . 444 Shots 11 | . . . . . 11 Rammed 1 | . 1 . . . . Targets Rammed 1 | . 1 . . . . Kicked . | . . . . . . Crushed . | . . . . . . Highest Temperature 17 | . . . 17 . . Average Temperature 12 | . . . 12 . . Received Heat Transfer 280 | . 48 . 196 . 36 Siege Activations . | . . . . . . Robots Corrupted . | . . . . . . Combat Hostiles . | . . . . . . Parts Fried . | . . . . . . Impact Corruptions 1 | . . 1 . . . Robots Melted . | . . . . . . Combat Hostiles . | . . . . . . Parts Melted . | . . . . . . Heat Transferred . | . . . . . . Parts Sabotaged . | . . . . . . Parts Stolen . | . . . . . . Parts Stripped . | . . . . . . Power Chain Reactions . | . . . . . . Missiles Intercepted . | . . . . . . Alert | -11 -10 -10 -9 -9 -7 ------- Run | Scr Mat Min Mat Min Zio Peak Influence 338 | . 323 32 338 131 . Initial 131 | . . 32 12 131 . Average 142 | . 157 32 156 131 . Maximum Alert Level 1 | . 1 . 1 . . Low Security (%) 72 | . 71 100 60 100 . Level 1 27 | . 28 . 39 . . Level 2 . | . . . . . . Level 3 . | . . . . . . Level 4 . | . . . . . . Level 5 . | . . . . . . High Security . | . . . . . . Max Security . | . . . . . . Squads Dispatched 5 | . 3 . 2 . . Investigation 3 | . 2 . 1 . . Extermination . | . . . . . . Reinforcement 2 | . 1 . 1 . . Assault . | . . . . . . Garrison . | . . . . . . Intercept . | . . . . . . Searches Triggered . | . . . . . . Construction Impeded . | . . . . . . Haulers Reinforced . | . . . . . . Active Scanning Responses . | . . . . . . Cargo Convoy Interrupts . | . . . . . . Stealth | -11 -10 -10 -9 -9 -7 --------- Run | Scr Mat Min Mat Min Zio Distress Signals 2 | . 1 . 1 . . Communications Jammed . | . . . . . . Distress Signals . | . . . . . . Times Spotted 59 | . 19 2 12 . 26 Peak Tracking Total 21 | . 4 2 4 . 21 Tactical Retreats 2 | . . . . . 2 Traps | -11 -10 -10 -9 -9 -7 ------- Run | Scr Mat Min Mat Min Zio Traps Triggered . | . . . . . . Indirectly . | . . . . . . Trap Hack Attempts . | . . . . . . Triggered . | . . . . . . Disarmed . | . . . . . . Reprogrammed . | . . . . . . Reused . | . . . . . . Traps Extracted . | . . . . . . Installed . | . . . . . . Triggered . | . . . . . . Machines | -11 -10 -10 -9 -9 -7 ---------- Run | Scr Mat Min Mat Min Zio Machines Disabled 1 | . . . 1 . . Max in Single Turn 1 | . . . 1 . . Machines Sabotaged . | . . . . . . Overloaded Fab Kills . | . . . . . . Hacking | -11 -10 -10 -9 -9 -7 --------- Run | Scr Mat Min Mat Min Zio Machines Accessed 12 | . 8 . 3 . 1 Terminals 8 | . 6 . 2 . . Fabricators . | . . . . . . Repair Stations . | . . . . . . Recycling Units 2 | . 2 . . . . Scanalyzers 1 | . . . 1 . . Garrison Access . | . . . . . . Total Hacks 38 | . 21 . 13 . 4 Successful 24 | . 11 . 9 . 4 Failed 14 | . 10 . 4 . . Catastrophic 1 | . 1 . . . . Database Lockouts . | . . . . . . Manual 25 | . 21 . 4 . . Terminals 23 | . 19 . 4 . . Fabricators . | . . . . . . Repair Stations . | . . . . . . Recycling Units 2 | . 2 . . . . Scanalyzers 9 | . . . 9 . . Garrison Access . | . . . . . . Terminal Hacks 10 | . 6 . . . 4 Part Schematic 5 | . 1 . . . 4 Robot Analysis 2 | . 2 . . . . Branch Access Points 1 | . 1 . . . . Emergency Access Points 1 | . 1 . . . . Zone Layout 1 | . 1 . . . . Fabricator Hacks . | . . . . . . Repair Station Hacks . | . . . . . . Recycling Unit Hacks . | . . . . . . Scanalyzer 8 | . . . 8 . . Insert Component 4 | . . . 4 . . Analyze 4 | . . . 4 . . Garrison Access Hacks . | . . . . . . Unauthorized Hacks 6 | . 5 . 1 . . Terminals 4 | . 3 . 1 . . Botnet 2 | . 2 . . . . Operators 2 | . 1 . 1 . . Fabricators . | . . . . . . Repair Stations . | . . . . . . Recycling Units 2 | . 2 . . . . Tunnel 2 | . 2 . . . . Scanalyzers . | . . . . . . Garrison Access . | . . . . . . Data Cores Recovered . | . . . . . . Used . | . . . . . . Hacking Detections 8 | . 5 . 3 . . Full Trace Events 1 | . . . 1 . . Feedback Events . | . . . . . . Feedback Blocked . | . . . . . . Robot Schematics Acquired . | . . . . . . Robots Built . | . . . . . . Authchips . | . . . . . . Time . | . . . . . . Total Robot Build Rating . | . . . . . . Part Schematics Acquired 9 | . 1 . 4 . 4 Parts Built . | . . . . . . Authchips . | . . . . . . Time . | . . . . . . Total Part Build Rating . | . . . . . . Parts Repaired . | . . . . . . Time . | . . . . . . Parts Recycled . | . . . . . . Recycled Matter . | . . . . . . Retrieved Matter . | . . . . . . Retrieved Components . | . . . . . . Parts Scanalyzed 4 | . . . 4 . . Part Schematics Acquired 4 | . . . 4 . . Parts Damaged . | . . . . . . Bothacking | -11 -10 -10 -9 -9 -7 ------------ Run | Scr Mat Min Mat Min Zio Used RIF Installer . | . . . . . . Robots Hacked . | . . . . . . Non-combat . | . . . . . . Combat . | . . . . . . Robot Hacks Applied . | . . . . . . Relay Couplers Released . | . . . . . . Fabnet Peak Effective % . | . . . . . . Robots Rewired . | . . . . . . Allies Hacked . | . . . . . . Hacks Repelled . | . . . . . . Allies | -11 -10 -10 -9 -9 -7 -------- Run | Scr Mat Min Mat Min Zio Total Allies . | . . . . . . Largest Group . | . . . . . . Highest-Rated Group . | . . . . . . Highest-Rated Ally . | . . . . . . Total Orders . | . . . . . . Ally Attacks . | . . . . . . Total Damage . | . . . . . . Kills . | . . . . . . Allies Corrupted . | . . . . . . Allies Melted . | . . . . . . Intel | -11 -10 -10 -9 -9 -7 ------- Run | Scr Mat Min Mat Min Zio Robot Analysis Total 2 | . 2 . . . . Derelict Logs Recovered . | . . . . . . Drone Launches . | . . . . . . Drone Recoveries . | . . . . . . Exploration | -11 -10 -10 -9 -9 -7 ------------- Run | Scr Mat Min Mat Min Zio Turns Passed 3274 | . 855 165 384 11 1859 Spaces Moved 1942 | 1 577 124 209 9 1022 Core 84 | . . . . . 84 Treads 739 | . . . . . 739 Legs 59 | 1 58 . . . . Wheels 1060 | . 519 124 209 9 199 Hover . | . . . . . . Flight . | . . . . . . Fastest Speed 50 | 120 110 115 115 130 50 Average Speed 133 | 120 111 115 119 130 150 Slowest Speed 450 | 120 120 115 130 130 450 Overloaded Moves . | . . . . . . Propulsion Burnouts . | . . . . . . Robots Hopped . | . . . . . . Cave-ins Triggered . | . . . . . . Exploration Rate (%) 37 | 2 78 24 20 9 90 Regions Visited 5 Branch Regions 3 Pre-discovered Areas 3 | . 2 . . . 1 Known Exits Taken 1 | . 1 . . . . Unknown Exits Taken 4 | 1 . 1 1 1 . Scrap Searched 2 | . . . . . 2 Spaces Dug 28 | . . . . . 28 Terrain Destroyed 81 | . . . . . 81 Melee 9 | . . . . . 9 Projectile . | . . . . . . AOE 72 | . . . . . 72 Terrain Rammed . | . . . . . . Walls Destroyed . | . . . . . . Machines Disabled . | . . . . . . Actions | -11 -10 -10 -9 -9 -7 --------- Run | Scr Mat Min Mat Min Zio Total 2367 | . 696 132 285 8 1246 Wait 206 | . 31 . 28 . 147 Move 1937 | . 576 123 208 8 1022 Hop . | . . . . . . Pick Up 33 | . 20 . 7 . 6 Fast Attach 6 | . 2 . 3 . 1 Attach 10 | . 6 . 3 . 1 Detach . | . . . . . . Swap 13 | . . 1 4 . 8 Drop 25 | . 12 . 3 . 10 Fire 89 | . 48 . 28 . 13 Melee 47 | . . 8 1 . 38 Ram 1 | . 1 . . . . Kick . | . . . . . . Crush . | . . . . . . Escape Stasis . | . . . . . . Rewire . | . . . . . . Trap . | . . . . . . Miscellaneous . | . . . . . . Route ------- -11/Scrapyard -10/Materials (discovered 3 exits: *Mat x2 / *Min) -10/Mines -9/Materials -9/Mines -7/Zion (discovered 1 exit: [*Pro]) History --------- Turn | Location | Event 1 | -11/Scrapyard | Discovered new exit (range 0) 1 | -11/Scrapyard | Entered Materials 215 | -10/Materials | Discovered new exit (range 16) 314 | -10/Materials | Build established: Mutant 491 | -10/Materials | Discovered new exit (range 6) 493 | -10/Materials | Identified exit to Mines 794 | -10/Materials | Lost 4 parts (1p1n1u1w) 856 | -10/Materials | Entered Mines 917 | -10/Mines | Discovered new exit (range 15) 919 | -10/Mines | Excavation squad dispatched 919 | -10/Mines | A large section of the Mines collapsed 1021 | -10/Mines | Entered Materials 1021 | -9/Materials | Evolved 2 slots: Propulsion x1, Utility x1 1368 | -9/Materials | Discovered new exit (range 11) 1405 | -9/Materials | Entered Mines 1406 | -9/Mines | A Derelict revealed a hidden shortcut to a safe place 1406 | -9/Mines | Assembled infested the area 1416 | -9/Mines | Entered Zion 1514 | -7/Zion | Discovered new exit (range 16) 1517 | -7/Zion | Found CR-A16's Pointy Stick 1558 | -7/Zion | Given the Hacking Drone Bay 1559 | -7/Zion | Found Prototype Device 2271 | -7/Zion | Learned location of Recycling (-7) 2309 | -7/Zion | Received a hallucinogenic algorithm 2918 | -7/Zion | Attacked by Zionites 2995 | -7/Zion | Lost 4 parts (2n2w) 3232 | -7/Zion | Core integrity fell below 50% 3234 | -7/Zion | Released all parts (4) 3263 | -7/Zion | Core integrity fell below 20% 3275 | -7/Zion | Destroyed by GM-LGS(z) with Makeshift Sword Last Messages --------------- 03222_ Arm. Treads destroyed. 03223_ The unstable cave ceiling collapses. 03223_ 5 Matter crushed. 03234_ Released CR-A16's Pointy Stick. 03234_ Released Shield Generator. 03234_ Released Structural Scanner. 03234_ Released Lrg. Storage Unit. 03243_ 58-Z6R(z) pulls a Mak. Hammer out of the Twisted Machinery. 03245_ AF-VWU(z) pulls a Mak. Laser out of the Twisted Machinery. 03245_ CE-HHH(z) pulls a Mak. Spear out of the Twisted Machinery. 03256_ J1-KN3(z) pulls a Mak. Sword out of the Twisted Machinery. 03258_ Y6-H0K(z) pulls a Mak. Sword out of the Twisted Machinery. 03259_ 1V-6RB(z) pulls a Mak. Hammer out of the Twisted Machinery. 03259_ 64-SEK(z) pulls a Mak. Sword out of the Twisted Machinery. 03261_ 8B-L11(z) pulls a Mak. Hammer out of the Twisted Machinery. 4G-RI7(z) bursts out of the Twisted Machinery. 03266_ 4G-RI7(z) pulls a Mak. Axe out of the Twisted Machinery. 03267_ 4I-SX7(z) pulls a Mak. Axe out of the Twisted Machinery. 03273_ GM-LGS(z) pulls a Mak. Sword out of the Twisted Machinery. 03275_ Q8-7S5(z) pulls a Mak. Laser out of the Twisted Machinery. Map ----- +----------------------------------------------------+ | """ """ ""###????????????? | | "#" "" ""###????????????? | | """ "#"##????????????? | | """"" ""###????????????? | | """"" "####????????????? | | " "###?????????????? | | " ""##??????????????? | | """""###??????????????? | | ""#""# "" """"""##??????????????? | | """" """"""""" """" ""##??????????????? | | """""""""""""" """"" ""##??????????????? | | ###"""#"##"#"""" """ ""###??????????????? | | ###########""""" """" ""#"##??????????????? | | ?###########"" " """"" "#####??????????????? | | ?????????###" " """""" """##???????????????? | | ??????????##" """"#""" ""###???????????????? | | ??????????##"" ""###""" """#"##?????????????? | | ??????????##""" """#"#"" """##?????????????? | | ??????????###""" """""""" ""########???????? | | ??????????###""" z """""" z ""################ | | ???????????####" """""""z ""### "########## | | ???????????##""" """""" ""## """"""""""" | | ???????????###"" """""z "### """"""""""" | | ??????????####"" "# | | ?????????#####"" "" | | ?????????###""" "" @ m | | ?????????##""" """"""z ""# | | ?????????####" """#"" ""#### """"""""""" | | ?????????###"""" """#" ""#### """"""""""" | | ??????????###""" " "##"" I """### "########## | | ###???????####"" " """" ""################# | | #####??????####" " """ """########???????? | | ""###???????###" """[ ! ""###?????????????? | | """##????????""" """""" = "####?????????????? | | """##????????"#" #""#"" ""##??????????????? | | "" ####??????##" ""#"#" = "###??????????????? | | X ######????""" ""#""" ""###??????????????? | | "####???"""" ""##"" ""##???????????????? | | # ""#######"" ""##"" ""###???????????????? | | " #####""#" ""###" ""######?????????????? | | """""""" ""###"" """##"##?????????????? | | """""" ""#""" """"""##?????????????? | | """"" "" """"?????????????? | | """ "#"#????????????? | | ""##????????????? | | ""#"##""""" """##????????????? | | """""""""" """"##????????????? | | """"""#""""" """ ""#"###????????????? | | """"""""" """ ""#####?????????????? | | "" "" """ """" """"""""#####?????????????? | +----------------------------------------------------+ Best States ------------- Heat Dissipation 28 Energy Generation 15 Energy Capacity 250 Matter Stores 300 Matter Capacity 300 Sight Range 16 Terrain Scan Density 10 ECM Strength 1 Evasion (%) 55 Recoil Reduction 3 Item Schematics ----------------- Huge Storage Unit | -10/Materials | Hacked Lgt. Armor Plating | -9/Materials | Scanalyzed Heat Sink | -9/Materials | Scanalyzed Signal Interpreter | -9/Materials | Scanalyzed Lgt. Treads | -9/Materials | Scanalyzed Beamcaster | -7/Zion | Free Riot Gun | -7/Zion | Free Battle Rifle | -7/Zion | Free Slug Cannon | -7/Zion | Free Robot Schematics ------------------ None Fabricated ------------ Nothing Alien Tech Used ----------------- None Achievements -------------- None Challenges ------------ None Game ------ Seed ZioniteMasterThruster Manual? 0 Play Time 00:23:07 Cumulative 192.8 hours Start 2023.01.10 @ 21:43:23 End 2023.01.10 @ 22:10:57 Sessions 1 Manual Loads 0 Difficulty Rogue Special Mode None Game No. 269 Rogue 269 Adventurer 0 Explorer 0 Win Type - Total 5 Types 1/0/3/0/0/0/1/0/0 Lore% 73 Gallery% 83 Achievement% 64 Wizard Run 0 Options --------- ASCII 0 Keyboard 0 Movement Numpad Keybinds 0 Fullscreen 1 Font 18/SmallcapsGlow Map View 76x50 Tactical HUD 1 Map Filters NONE Filters NONE Steam 1 RUN: 86cdfe15-c7f3-4b22-8d4a-83667d42ea31